[Event "African Online-ch U20-Open 2021"]
[Site "Online"]
[Date "2021.02.01"]
[Round "9.16"]
[White "Ofile Masilo"]
[Black "Masaiti, Gideon"]
[Result "0-1"]
[ECO "D36"]
[WhiteElo "1457"]
[BlackElo "1442"]
[Annotator "NA RC"]
[PlyCount "170"]
[EventDate "2021.02.01"]
[EventType "swiss"]
[EventCountry "NET"]
[SourceTitle "playchess.com"]
[Source "ChessBase"]
[SourceQuality "1"]
[TimeControl "1500+10"]

1. d4 {[%emt 0:00:00]} e6 {[%emt 0:00:38]} 2. c4 {[%emt 0:00:06]} d5 {[%emt 0:00:02]} 3. Nc3 {[%emt 0:00:05]} Nf6 {[%emt 0:00:04]} 4. cxd5 {[%emt 0:00:04]} exd5 {[%emt 0:00:03]} 5. Bg5 {[%emt 0:00:03]} Be7 {[%emt 0:00:07]} 6. Qc2 {[%emt 0:00:08]} c6 {[%emt 0:00:03]} 7. e3 {[%emt 0:00:05]} h6 {[%emt 0:00:04]} 8. Bh4 {[%emt 0:00:03]} Nbd7 {[%emt 0:00:03]} 9. Bd3 {[%emt 0:00:05]} O-O {[%emt 0:00:21]} 10. Nge2 {[%emt 0:00:07]} Re8 {[%emt 0:00:11]} 11. O-O {[%emt 0:00:06]} Ne4 {[%emt 0:00:19]} 12. Bxe7 {[%emt 0:00:06]} Qxe7 {[%emt 0:00:04]} 13. Nxe4 {[%emt 0:00:16]} dxe4 {[%emt 0:00:03]} 14. Bc4 {[%emt 0:00:03]} Nf6 {[%emt 0:00:03]} 15. Ng3 {[%emt 0:00:14]} Be6 {[%emt 0:00:27]} 16. Rfc1 {[%emt 0:01:56]} Rac8 {[%emt 0:00:26]} 17. Bxe6 {[%emt 0:01:25]} Qxe6 {[%emt 0:00:05]} 18. Qc4 {[%emt 0:00:39]} Qd6 {[%emt 0:00:05]} 19. Qc5 {[%emt 0:00:50]} Qb8 {[%emt 0:00:24]} 20. Nf5 {[%emt 0:01:21]} Rc7 {[%emt 0:01:36]} 21. Qd6 {[%emt 0:02:54]} Rd7 {[%emt 0:01:27]} 22. Nxh6+ {[%emt 0:02:45]} gxh6 {[%emt 0:00:35]} 23. Qxf6 {[%emt 0:00:23]} Re6 {[%emt 0:02:44]} 24. Qh4 {[%emt 0:00:47]} Rd5 {[%emt 0:01:13]} 25. Rc5 {[%emt 0:00:30]} Rxc5 {[%emt 0:01:44]} 26. dxc5 {[%emt 0:00:05]} Kh7 {[%emt 0:00:05]} 27. Qg3 {[%emt 0:02:36]} Qxg3 {[%emt 0:00:49]} 28. hxg3 {[%emt 0:00:10]} Re5 {[%emt 0:00:02]} 29. Rc1 {[%emt 0:01:30]} Rd5 {[%emt 0:00:04]} 30. Rc2 {[%emt 0:00:07]} Rd1+ {[%emt 0:00:10]} 31. Kh2 {[%emt 0:00:05]} Kg6 {[%emt 0:00:03]} 32. g4 {[%emt 0:00:06]} Kg5 {[%emt 0:00:04]} 33. Kg3 {[%emt 0:00:04]} f5 {[%emt 0:01:22]} 34. gxf5 {[%emt 0:00:22]} Kxf5 {[%emt 0:00:05]} 35. f3 {[%emt 0:00:52]} h5 {[%emt 0:00:52]} 36. Rc4 {[%emt 0:01:09]} exf3 {[%emt 0:00:29]} 37. Kxf3 {[%emt 0:00:19]} Rd2 {[%emt 0:00:06]} 38. Rb4 {[%emt 0:00:20]} Rd7 {[%emt 0:00:32]} 39. Rd4 {[%emt 0:00:21]} Rg7 {[%emt 0:01:00]} 40. e4+ {[%emt 0:00:39]} Ke5 {[%emt 0:00:09]} 41. Rd8 {[%emt 0:00:26]} Rf7+ {[%emt 0:00:09]} 42. Ke3 {[%emt 0:00:08]} Rg7 {[%emt 0:00:05]} 43. Re8+ {[%emt 0:00:36]} Kf6 {[%emt 0:00:19]} 44. Kf3 {[%emt 0:00:28]} h4 {[%emt 0:00:30]} 45. Rh8 {[%emt 0:00:27]} Rg3+ {[%emt 0:00:12]} 46. Kf2 {[%emt 0:00:06]} Rd3 {[%emt 0:00:29]} 47. Ke2 {[%emt 0:00:41]} Rg3 {[%emt 0:00:10]} 48. Rxh4 {[%emt 0:00:12]} Rxg2+ {[%emt 0:00:04]} 49. Kd3 {[%emt 0:00:27]} Rxb2 {[%emt 0:00:04]} 50. Rh7 {[%emt 0:00:16]} a5 {[%emt 0:00:42]} 51. Kc3 {[%emt 0:00:19]} Rb4 {[%emt 0:00:14]} 52. a3 {[%emt 0:00:23]} Rb5 {[%emt 0:01:03]} 53. Rh5 {[%emt 0:00:09]} a4 {[%emt 0:00:07]} 54. Rf5+ {[%emt 0:00:12]} Ke6 {[%emt 0:00:04]} 55. Rh5 {[%emt 0:00:13]} Rb3+ {[%emt 0:00:05]} 56. Kc2 {[%emt 0:00:13]} Rxa3 {[%emt 0:00:04]} 57. Kb2 {[%emt 0:00:12]} Rb3+ {[%emt 0:00:03]} 58. Ka2 {[%emt 0:00:05]} Rb4 {[%emt 0:00:05]} 59. e5 {[%emt 0:00:26]} Rb5 {[%emt 0:00:09]} 60. Ka3 {[%emt 0:00:14]} Rxc5 {[%emt 0:00:06]} 61. Kxa4 {[%emt 0:00:04]} Rxe5 {[%emt 0:00:04]} 62. Rh7 {[%emt 0:00:07]} b6 {[%emt 0:00:03]} 63. Rh6+ {[%emt 0:00:04]} Kd5 {[%emt 0:00:04]} 64. Rh4 {[%emt 0:00:04]} Re4+ {[%emt 0:00:03]} 65. Rxe4 {[%emt 0:00:09]} Kxe4 {[%emt 0:00:04]} 66. Kb4 {[%emt 0:00:03]} Kd4 {[%emt 0:00:02]} 67. Kb3 {[%emt 0:00:03]} Kc5 {[%emt 0:00:04]} 68. Kc3 {[%emt 0:00:02]} b5 {[%emt 0:00:07]} 69. Kb3 {[%emt 0:00:04]} b4 {[%emt 0:00:03]} 70. Kb2 {[%emt 0:00:04]} Kd4 {[%emt 0:00:05]} 71. Kb3 {[%emt 0:00:03]} c5 {[%emt 0:00:02]} 72. Kc2 {[%emt 0:00:02]} c4 {[%emt 0:00:03]} 73. Kb2 {[%emt 0:00:02]} Kd3 {[%emt 0:00:03]} 74. Kb1 {[%emt 0:00:03]} Kd2 {[%emt 0:00:03]} 75. Kb2 {[%emt 0:00:04]} c3+ {[%emt 0:00:03]} 76. Kb3 {[%emt 0:00:02]} c2 {[%emt 0:00:03]} 77. Kxb4 {[%emt 0:00:03]} c1=Q {[%emt 0:00:05]} 78. Kb5 {[%emt 0:00:03]} Qc7 {[%emt 0:00:03]} 79. Kb4 {[%emt 0:00:04]} Qc6 {[%emt 0:00:03]} 80. Kb3 {[%emt 0:00:03]} Qc5 {[%emt 0:00:03]} 81. Kb2 {[%emt 0:00:05]} Qc3+ {[%emt 0:00:03]} 82. Kb1 {[%emt 0:00:04]} Kd3 {[%emt 0:00:10]} 83. Ka2 {[%emt 0:00:04]} Qb4 {[%emt 0:00:03]} 84. Ka1 {[%emt 0:00:03]} Kc2 {[%emt 0:00:03]} 85. Ka2 {[%emt 0:00:02]} Qa5# {[%emt 0:00:02]} 0-1

[Event "African Online-ch U20-Open 2021"]
[Site "Online"]
[Date "2021.02.01"]
[Round "9.17"]
[White "Meise, Keagen"]
[Black "Mcligeyo, Robert"]
[Result "1-0"]
[ECO "A60"]
[WhiteElo "1200"]
[BlackElo "1688"]
[Annotator "NA RC"]
[PlyCount "141"]
[EventDate "2021.02.01"]
[EventType "swiss"]
[EventCountry "NET"]
[SourceTitle "playchess.com"]
[Source "ChessBase"]
[SourceQuality "1"]
[TimeControl "1500+10"]

1. d4 {[%emt 0:00:00]} Nf6 {[%emt 0:00:05]} 2. c4 {[%emt 0:00:03]} c5 {[%emt 0:00:06]} 3. d5 {[%emt 0:00:02]} e6 {[%emt 0:00:01]} 4. Nc3 {[%emt 0:00:06]} b5 {[%emt 0:00:03]} 5. Nxb5 {[%emt 0:00:11]} exd5 {[%emt 0:00:09]} 6. cxd5 {[%emt 0:00:02]} Bb7 {[%emt 0:00:04]} 7. Nc3 {[%emt 0:00:02]} d6 {[%emt 0:00:03]} 8. e4 {[%emt 0:00:10]} Be7 {[%emt 0:00:04]} 9. Nf3 {[%emt 0:00:03]} O-O {[%emt 0:00:03]} 10. Bd3 {[%emt 0:00:03]} Nbd7 {[%emt 0:00:03]} 11. Bg5 {[%emt 0:00:07]} Re8 {[%emt 0:00:07]} 12. O-O {[%emt 0:00:05]} h6 {[%emt 0:00:09]} 13. Bxf6 {[%emt 0:00:04]} Nxf6 {[%emt 0:00:03]} 14. Re1 {[%emt 0:00:10]} Rb8 {[%emt 0:00:08]} 15. Qc2 {[%emt 0:00:07]} Qb6 {[%emt 0:00:28]} 16. Rab1 {[%emt 0:00:12]} Rec8 {[%emt 0:00:06]} 17. Qa4 {[%emt 0:00:30]} Qb4 {[%emt 0:00:43]} 18. Qxb4 {[%emt 0:00:37]} cxb4 {[%emt 0:00:04]} 19. Ne2 {[%emt 0:00:03]} a5 {[%emt 0:00:19]} 20. Rec1 {[%emt 0:00:22]} Rxc1+ {[%emt 0:00:17]} 21. Rxc1 {[%emt 0:00:03]} Rc8 {[%emt 0:00:01]} 22. Rxc8+ {[%emt 0:00:05]} Bxc8 {[%emt 0:00:03]} 23. Ned4 {[%emt 0:00:02]} Nd7 {[%emt 0:00:25]} 24. Nc6 {[%emt 0:00:05]} Kf8 {[%emt 0:00:09]} 25. Nxa5 {[%emt 0:00:16]} Nc5 {[%emt 0:00:02]} 26. Bc2 {[%emt 0:00:11]} Bf6 {[%emt 0:00:04]} 27. b3 {[%emt 0:00:12]} Ba6 {[%emt 0:00:09]} 28. Nc6 {[%emt 0:00:07]} Bd3 {[%emt 0:00:11]} 29. Nxb4 {[%emt 0:00:09]} Bxc2 {[%emt 0:00:05]} 30. Nxc2 {[%emt 0:00:04]} Nxe4 {[%emt 0:00:02]} 31. b4 {[%emt 0:00:21]} Nc3 {[%emt 0:00:03]} 32. a3 {[%emt 0:00:07]} Nxd5 {[%emt 0:00:03]} 33. Ncd4 {[%emt 0:00:05]} Ke8 {[%emt 0:00:07]} 34. b5 {[%emt 0:00:47]} g5 {[%emt 0:00:05]} 35. Nf5 {[%emt 0:00:12]} h5 {[%emt 0:00:25]} 36. Nxd6+ {[%emt 0:00:07]} Ke7 {[%emt 0:00:03]} 37. Ne4 {[%emt 0:00:02]} Bb2 {[%emt 0:00:06]} 38. Nfxg5 {[%emt 0:00:44]} Bxa3 {[%emt 0:00:08]} 39. Ng3 {[%emt 0:00:04]} h4 {[%emt 0:00:09]} 40. Ne2 {[%emt 0:00:10]} Bc5 {[%emt 0:00:47]} 41. Nf3 {[%emt 0:00:13]} h3 {[%emt 0:00:04]} 42. gxh3 {[%emt 0:00:05]} Nc7 {[%emt 0:00:03]} 43. Nc3 {[%emt 0:00:24]} Bb4 {[%emt 0:00:28]} 44. b6 {[%emt 0:00:12]} Bxc3 {[%emt 0:00:04]} 45. bxc7 {[%emt 0:00:04]} Kd7 {[%emt 0:00:02]} 46. Ng5 {[%emt 0:00:04]} f6 {[%emt 0:00:14]} 47. Ne6 {[%emt 0:00:24]} Be5 {[%emt 0:00:09]} 48. Kg2 {[%emt 0:00:03]} f5 {[%emt 0:00:21]} 49. h4 {[%emt 0:00:26]} Bd6 {[%emt 0:01:00]} 50. Nd4 {[%emt 0:00:36]} Bxc7 {[%emt 0:01:00]} 51. Nxf5 {[%emt 0:00:03]} Ke6 {[%emt 0:00:04]} 52. Ng3 {[%emt 0:00:05]} Kf6 {[%emt 0:00:05]} 53. Kh3 {[%emt 0:00:04]} Kg6 {[%emt 0:00:04]} 54. Kg4 {[%emt 0:00:03]} Bb8 {[%emt 0:00:11]} 55. f4 {[%emt 0:00:05]} Kf6 {[%emt 0:00:04]} 56. h5 {[%emt 0:00:04]} Bc7 {[%emt 0:00:06]} 57. h4 {[%emt 0:00:04]} Bb8 {[%emt 0:00:06]} 58. Ne4+ {[%emt 0:00:02]} Kg7 {[%emt 0:00:07]} 59. Kg5 {[%emt 0:00:07]} Bc7 {[%emt 0:00:06]} 60. f5 {[%emt 0:00:02]} Bd8+ {[%emt 0:00:07]} 61. f6+ {[%emt 0:00:01]} Kh7 {[%emt 0:00:07]} 62. h6 {[%emt 0:00:12]} Bb6 {[%emt 0:00:37]} 63. f7 {[%emt 0:00:15]} Be3+ {[%emt 0:00:03]} 64. Kf6 {[%emt 0:00:17]} Bxh6 {[%emt 0:00:06]} 65. Ng5+ {[%emt 0:00:02]} Kh8 {[%emt 0:00:14]} 66. Ne6 {[%emt 0:00:25]} Kh7 {[%emt 0:00:24]} 67. f8=Q {[%emt 0:00:55]} Bxf8 {[%emt 0:00:04]} 68. Nxf8+ {[%emt 0:00:02]} Kh6 {[%emt 0:00:01]} 69. Ng6 {[%emt 0:00:02]} Kh5 {[%emt 0:00:02]} 70. Kf5 {[%emt 0:00:02]} Kh6 {[%emt 0:00:05]} 71. Nf4 {[%emt 0:00:02]} 1-0

[Event "African Online-ch U20-Open 2021"]
[Site "Online"]
[Date "2021.02.01"]
[Round "9.20"]
[White "Dutt Dakshesh"]
[Black "Belattar, Mohamed Walid"]
[Result "1-0"]
[ECO "A47"]
[WhiteElo "1549"]
[BlackElo "1214"]
[Annotator "NA RC"]
[PlyCount "147"]
[EventDate "2021.02.01"]
[EventType "swiss"]
[EventCountry "NET"]
[SourceTitle "playchess.com"]
[Source "ChessBase"]
[SourceQuality "1"]
[TimeControl "1500+10"]

1. d4 {[%emt 0:00:00]} Nf6 {[%emt 0:00:05]} 2. Bf4 {[%emt 0:00:05]} e6 {[%emt 0:00:03]} 3. e3 {[%emt 0:00:22]} b6 {[%emt 0:00:12]} 4. Nf3 {[%emt 0:00:03]} Bb7 {[%emt 0:00:03]} 5. Bd3 {[%emt 0:00:03]} Be7 {[%emt 0:00:12]} 6. Nbd2 {[%emt 0:00:05]} O-O {[%emt 0:00:20]} 7. O-O {[%emt 0:00:39]} d6 {[%emt 0:00:27]} 8. e4 {[%emt 0:01:10]} Nbd7 {[%emt 0:01:10]} 9. c3 {[%emt 0:00:48]} c5 {[%emt 0:02:31]} 10. Re1 {[%emt 0:01:13]} cxd4 {[%emt 0:00:46]} 11. cxd4 {[%emt 0:00:03]} e5 {[%emt 0:00:09]} 12. dxe5 {[%emt 0:00:48]} dxe5 {[%emt 0:00:10]} 13. Bg3 {[%emt 0:00:05]} Rc8 {[%emt 0:03:14]} 14. Rc1 {[%emt 0:02:23]} Rxc1 {[%emt 0:01:35]} 15. Qxc1 {[%emt 0:00:16]} Nc5 {[%emt 0:00:05]} 16. Bc2 {[%emt 0:00:26]} Bd6 {[%emt 0:04:23]} 17. Nxe5 {[%emt 0:01:33]} Bxe5 {[%emt 0:00:30]} 18. Bxe5 {[%emt 0:00:08]} Qe7 {[%emt 0:00:14]} 19. Bxf6 {[%emt 0:00:33]} Qxf6 {[%emt 0:00:23]} 20. Nb3 {[%emt 0:00:42]} Nxb3 {[%emt 0:01:01]} 21. Bxb3 {[%emt 0:00:08]} Qg6 {[%emt 0:00:36]} 22. f3 {[%emt 0:00:31]} Rc8 {[%emt 0:00:10]} 23. Qd2 {[%emt 0:01:10]} Qc6 {[%emt 0:01:27]} 24. Rd1 {[%emt 0:00:40]} h6 {[%emt 0:00:48]} 25. h3 {[%emt 0:01:20]} Qc5+ {[%emt 0:00:33]} 26. Kh1 {[%emt 0:00:23]} Qc7 {[%emt 0:00:59]} 27. Qd3 {[%emt 0:01:24]} Qe5 {[%emt 0:01:38]} 28. Qd7 {[%emt 0:00:46]} Qc7 {[%emt 0:00:10]} 29. Qxc7 {[%emt 0:00:31]} Rxc7 {[%emt 0:00:04]} 30. Rd8+ {[%emt 0:00:17]} Kh7 {[%emt 0:00:10]} 31. Rd2 {[%emt 0:00:35]} g6 {[%emt 0:00:15]} 32. Kg1 {[%emt 0:00:12]} f5 {[%emt 0:00:08]} 33. e5 {[%emt 0:00:22]} Re7 {[%emt 0:00:43]} 34. e6 {[%emt 0:00:18]} Bc8 {[%emt 0:00:39]} 35. Kf2 {[%emt 0:00:41]} Bxe6 {[%emt 0:00:35]} 36. Bxe6 {[%emt 0:00:09]} Rxe6 {[%emt 0:00:05]} 37. Rd7+ {[%emt 0:00:02]} Kg8 {[%emt 0:00:07]} 38. Rxa7 {[%emt 0:00:06]} Rc6 {[%emt 0:00:13]} 39. Re7 {[%emt 0:00:08]} Kf8 {[%emt 0:00:28]} 40. Re2 {[%emt 0:00:07]} Kf7 {[%emt 0:00:04]} 41. g4 {[%emt 0:00:18]} fxg4 {[%emt 0:00:12]} 42. hxg4 {[%emt 0:00:05]} h5 {[%emt 0:00:29]} 43. gxh5 {[%emt 0:00:08]} gxh5 {[%emt 0:00:02]} 44. Kg3 {[%emt 0:00:02]} Rh6 {[%emt 0:00:06]} 45. Kh4 {[%emt 0:00:04]} Kf6 {[%emt 0:00:03]} 46. Rg2 {[%emt 0:00:06]} Kf5 {[%emt 0:00:35]} 47. b4 {[%emt 0:00:30]} Kf4 {[%emt 0:00:24]} 48. Rg3 {[%emt 0:00:10]} Kf5 {[%emt 0:00:22]} 49. a4 {[%emt 0:00:16]} Kf4 {[%emt 0:02:01]} 50. a5 {[%emt 0:00:22]} bxa5 {[%emt 0:00:04]} 51. bxa5 {[%emt 0:00:03]} Rf6 {[%emt 0:01:30]} 52. Rg1 {[%emt 0:00:19]} Rf5 {[%emt 0:00:10]} 53. Ra1 {[%emt 0:00:08]} Rf8 {[%emt 0:00:10]} 54. Ra3 {[%emt 0:00:04]} Ra8 {[%emt 0:00:13]} 55. Kxh5 {[%emt 0:00:03]} Kf5 {[%emt 0:00:04]} 56. Kh4 {[%emt 0:00:04]} Kf4 {[%emt 0:00:02]} 57. Kh3 {[%emt 0:00:02]} Rh8+ {[%emt 0:00:02]} 58. Kg2 {[%emt 0:00:02]} Rg8+ {[%emt 0:00:18]} 59. Kf2 {[%emt 0:00:05]} Re8 {[%emt 0:00:10]} 60. a6 {[%emt 0:00:04]} Ke5 {[%emt 0:00:08]} 61. a7 {[%emt 0:00:04]} Ra8 {[%emt 0:00:02]} 62. Ke3 {[%emt 0:00:02]} Kd6 {[%emt 0:00:02]} 63. Ke4 {[%emt 0:00:03]} Kc7 {[%emt 0:00:01]} 64. Ke5 {[%emt 0:00:02]} Kb7 {[%emt 0:00:01]} 65. Ke6 {[%emt 0:00:02]} Re8+ {[%emt 0:00:06]} 66. Kf7 {[%emt 0:00:06]} Rc8 {[%emt 0:00:13]} 67. a8=Q+ {[%emt 0:00:09]} Rxa8 {[%emt 0:00:03]} 68. Rxa8 {[%emt 0:00:02]} Kxa8 {[%emt 0:00:01]} 69. f4 {[%emt 0:00:02]} Kb8 {[%emt 0:00:01]} 70. f5 {[%emt 0:00:01]} Kc8 {[%emt 0:00:01]} 71. f6 {[%emt 0:00:01]} Kd8 {[%emt 0:00:02]} 72. Kg7 {[%emt 0:00:02]} Ke8 {[%emt 0:00:06]} 73. f7+ {[%emt 0:00:02]} Ke7 {[%emt 0:00:02]} 74. f8=Q+ {[%emt 0:00:03]} 1-0